bitfinex/quotes_ETHUSD_20250411
["timestamp","ask_amount","ask_price","bid_price","bid_amount"]
[1744337793930,17.7388,1533.8,1533.7,0.13031473]
[1744337794229,24.25896,1533.8,1533.7,0.13031473]
[1744337794418,7.07023,1533.7,1533.3,6.52171]
[1744337794618,7.07023,1533.7,1533.4,6.52136]
[1744337794810,7.07023,1533.7,1533.3,6.52171]
[1744337795013,9.496133,1533.7,1533.3,6.52171]
[1744337795639,9.496133,1533.7,1533.3,13.04336]
[1744337796226,9.496133,1533.7,1533.3,13.04335]
[1744337796954,9.496133,1533.7,1533.4,6.52142]
[1744337797651,17.18876,1533.8,1533.4,6.52125]
[1744337797835,10.669,1533.8,1533.5,6.52098]
[1744337798010,10.669,1533.8,1533.2,7.37184]
[1744337798011,6.52035,1533.7,1533.3,6.52184]
[1744337798215,6.52035,1533.7,1533.4,6.52142]
[1744337798417,17.18877,1533.8,1533.4,6.52124]
[1744337798651,26.134667,1533.8,1533.4,6.52124]
[1744337798869,19.614587,1533.8,1533.4,13.0425]
[1744337799015,19.614587,1533.8,1533.5,6.52101]
[1744337799549,7.669,1533.8,1533.7,6.52017]
[1744337800051,7.669,1533.8,1533.7,6.65048473]
[1744337801471,7.669,1533.8,1533.7,0.13031473]
[1744337801967,7.40453,1534.0,1533.6,13.04083]
[1744337802134,7.40453,1534.0,1533.7,6.64736398]
[1744337802328,0.8856,1534.0,1533.8,6.51951]
[1744337802528,0.8856,1534.0,1533.7,6.52011]
[1744337802734,0.8856,1534.0,1533.8,0.12732398]
[1744337803878,0.55,1533.9,1533.8,0.12732398]
[1744337804546,3.0,1533.8,1533.3,13.04349]
[1744337804880,3.0,1533.8,1533.4,0.12732398]
[1744337804881,8.222,1533.7,1533.4,0.12732398]
[1744337805052,9.3442,1533.7,1533.4,6.64871398]
[1744337805258,9.3442,1533.7,1533.4,6.64856398]
[1744337805458,9.3442,1533.7,1533.4,0.12732398]
[1744337806283,9.3442,1533.7,1533.4,6.64869398]
[1744337806449,0.93442,1533.6,1533.4,6.64869398]
[1744337806652,6.52103,1533.5,1533.4,0.12732398]
[1744337806975,8.37171,1533.6,1533.2,13.88055]
[1744337807147,8.37171,1533.6,1533.3,0.12612769]
[1744337807462,0.837171,1533.5,1533.3,0.12612769]
[1744337808000,7.358391,1533.5,1533.3,0.12612769]
[1744337808304,7.358391,1533.5,1533.2,6.5221]
[1744337808460,7.908391,1533.5,1533.4,0.12685872]
[1744337808667,7.908391,1533.5,1533.1,13.04508]
[1744337808911,7.908391,1533.5,1533.4,0.12685872]
[1744337809093,7.07177,1533.4,1533.0,7.35937]
[1744337809302,7.84525743,1533.4,1533.0,13.88234]
[1744337809603,7.84525743,1533.4,1533.0,7.35927]
[1744337809984,1.32348743,1533.4,1533.1,6.52249]
[1744337810524,1.32348743,1533.4,1533.1,13.04501]
[1744337810697,0.53264833,1533.4,1533.2,6.52221]
[1744337811926,0.53264833,1533.4,1533.1,13.0451]
[1744337812110,0.55,1533.5,1533.2,6.52224]
[1744337812620,0.55,1533.5,1533.1,6.52251]
[1744337812819,0.55,1533.5,1533.1,13.04503]
[1744337813125,1.30277348,1533.5,1533.1,13.04503]
[1744337813330,1.30277348,1533.5,1533.2,6.52227]
[1744337813508,7.82421348,1533.5,1533.2,6.52227]
[1744337815219,7.82421348,1533.5,1533.3,0.12885231]
[1744337816312,7.82409348,1533.5,1533.3,0.12885231]
[1744337816505,0.78240935,1533.4,1533.3,0.12885231]
[1744337816705,7.82405348,1533.5,1533.1,13.04503]
[1744337817216,7.82405348,1533.5,1533.2,0.12885231]
[1744337817523,7.82405348,1533.5,1533.1,13.04503]
[1744337817714,7.82405348,1533.5,1533.3,0.12885231]
[1744337817919,6.97773482,1533.6,1533.0,7.35936]
[1744337818096,6.04331482,1533.6,1533.4,0.12885231]
[1744337818291,6.04331482,1533.6,1533.4,6.52137]
[1744337818700,6.59331482,1533.6,1533.5,0.12885231]
[1744337818895,13.11391482,1533.6,1533.5,0.12885231]
[1744337819127,13.11391482,1533.6,1533.3,6.52166]
[1744337819327,13.11391482,1533.6,1533.5,0.12885231]
[1744337819537,14.6904634,1533.6,1533.3,6.52166]
[1744337819716,13.11391482,1533.6,1533.5,0.12885231]
[1744337819908,0.55,1533.5,1533.1,6.5227]
[1744337820104,7.43193,1533.3,1533.0,0.8363]
[1744337820323,10.43077,1533.5,1533.0,0.8363]
[1744337820508,11.98651848,1533.5,1533.1,13.04491]
[1744337821307,3.9097,1533.5,1533.2,6.52215]
[1744337821505,3.0,1533.5,1533.3,6.52187]
[1744337822032,11.5817,1533.7,1533.4,6.52128]
[1744337822399,8.5817,1533.7,1533.4,6.52128]
[1744337822946,0.9097,1534.1,1533.6,3.85183472]
[1744337823237,11.64483482,1534.2,1533.8,6.51974]
[1744337823438,11.64483482,1534.2,1533.8,6.51956]
[1744337823601,11.64483482,1534.2,1533.8,6.51954]
[1744337823602,18.16320482,1534.2,1533.8,6.51954]
[1744337823938,6.51854,1534.1,1533.8,6.51954]
[1744337824119,0.55,1534.0,1533.5,6.52091]
[1744337824325,7.656,1533.9,1533.6,7.39281]
[1744337824522,7.656,1533.9,1533.7,6.52017]
[1744337824834,0.55,1533.8,1533.6,6.52058]
[1744337825135,7.656,1533.9,1533.6,13.04102]
[1744337825659,7.656,1533.9,1533.7,6.52013]
[1744337826060,7.656,1533.9,1533.7,13.04013]
[1744337826824,7.656,1533.9,1533.7,13.04001]
[1744337827024,7.656,1533.9,1533.8,6.51975]
[1744337828171,5.12671482,1534.2,1533.8,6.51975]
[1744337828172,7.655,1534.2,1534.0,6.51848]
[1744337828473,7.655,1534.2,1534.1,6.51832]
[1744337829021,7.655,1534.2,1534.0,7.39088]
[1744337829528,7.655,1534.2,1534.1,6.51847]
[1744337830064,7.655,1534.2,1534.1,6.64094374]
[1744337830982,0.55,1534.4,1534.1,6.64094374]
[1744337831281,8.542,1534.5,1534.2,13.03557]
[1744337831479,8.542,1534.5,1534.1,0.12247374]
[1744337831778,13.03556,1534.3,1534.2,0.12247374]
[1744337831950,6.5177,1534.3,1533.9,13.03814]
[1744337832147,73.09538,1534.6,1534.2,6.51787]
[1744337832387,6.77920141,1534.5,1534.2,6.51787]
[1744337832987,6.77920141,1534.5,1534.2,13.03574]
[1744337833490,6.51786,1534.3,1533.9,6.519]
[1744337833693,7.95078,1534.4,1534.0,7.40086]
[1744337834587,0.8835,1534.4,1534.2,6.51796]
[1744337834803,18.0539,1534.6,1534.2,6.51801]
[1744337835096,11.5375,1534.6,1534.3,6.51732]
[1744337835869,11.5375,1534.6,1534.3,6.51758]
[1744337836405,18.05413,1534.6,1534.3,6.51758]
[1744337836698,11.5375,1534.6,1534.3,6.51743]
[1744337836878,12.2443095,1534.6,1534.3,6.51743]
[1744337837253,12.2443095,1534.6,1534.2,6.518]
[1744337837457,18.7608595,1534.6,1534.2,6.518]
[1744337837657,18.7608595,1534.6,1534.2,13.03586]
[1744337837858,25.2774295,1534.6,1534.2,13.03586]
[1744337838057,18.7608595,1534.6,1534.2,13.03586]
[1744337838677,25.2774595,1534.6,1534.2,13.03586]
[1744337838875,11.5375,1534.6,1534.2,1.391816]
[1744337839081,8.5375,1534.6,1534.4,6.51703]
[1744337839905,7.654,1534.6,1534.4,13.03404]
[1744337840100,7.654,1534.6,1534.4,7.39931]
[1744337840331,6.51722,1534.4,1534.1,7.40064]
[1744337840625,13.03391,1534.5,1534.1,7.40058]
[1744337840921,8.585571,1534.5,1534.1,13.91885]
[1744337841126,14.1704,1534.6,1534.2,13.03591]
[1744337841535,14.1704,1534.6,1534.3,6.51758]
[1744337841991,7.06694,1534.5,1534.1,7.40062]
[1744337842193,7.06694,1534.5,1534.1,13.91891]
[1744337842500,14.17044,1534.6,1534.2,6.51774]
[1744337842701,8.64357698,1534.6,1534.1,7.40072]
[1744337842888,0.8835,1534.4,1534.1,7.4007]
[1744337843090,0.8835,1534.4,1534.1,13.91897]
[1744337843925,7.06678,1534.5,1534.1,13.91897]
[1744337844626,13.58379,1534.5,1534.1,13.91888]
[1744337844928,15.8956267,1534.5,1534.1,7.40057]
[1744337845352,7.40706,1534.7,1534.4,6.5172]
[1744337845646,6.51638,1534.6,1534.3,6.51747]
[1744337845949,7.40706,1534.7,1534.3,13.03495]
[1744337847021,7.39909,1534.4,1534.0,7.39439]
[1744337847249,14.656529,1534.4,1534.0,7.39439]
[1744337847723,6.51769,1534.3,1534.0,7.39439]
[1744337848530,8.138999,1534.4,1534.0,13.91308]
[1744337849370,14.656419,1534.4,1534.0,13.91308]
[1744337850057,14.656439,1534.4,1534.0,13.91308]
[1744337850357,8.138999,1534.4,1534.0,13.91308]
[1744337850548,8.138999,1534.4,1534.1,6.51839]
[1744337850858,6.51739,1534.4,1534.1,6.51839]
[1744337853752,13.03485,1534.4,1534.0,7.39439]
[1744337853952,6.51763,1534.3,1534.0,7.39439]
[1744337854148,0.55,1534.3,1533.8,0.8758]
[1744337854475,6.51862,1534.1,1533.7,13.91585]
[1744337854639,13.0375,1534.1,1533.7,7.39581]
[1744337855067,6.51891,1534.0,1533.7,7.39581]
[1744337855262,6.51891,1534.0,1533.6,6.52059]
[1744337855263,6.51937,1533.9,1533.6,6.52059]
[1744337855474,6.51891,1534.0,1533.7,6.52017]
[1744337855874,21.55396,1534.2,1533.8,6.51953]
[1744337856078,15.03575,1534.2,1533.8,13.91493]
[1744337856254,7.636,1534.2,1533.9,6.51932]
[1744337856670,0.55,1534.1,1533.8,0.8758]
[1744337856871,1.4317,1534.1,1533.8,0.8758]
[1744337857191,0.55,1534.1,1533.9,6.51918]
[1744337857480,14.15407,1534.2,1533.9,6.51918]
[1744337857481,7.636,1534.2,1533.9,6.51918]
[1744337857679,7.636,1534.2,1534.0,7.170588]
[1744337857887,7.636,1534.2,1534.1,0.8758]
[1744337858052,7.636,1534.2,1533.9,7.39512]
[1744337860349,1.4317,1534.1,1533.7,7.3959]
[1744337860655,1.4317,1534.1,1533.7,7.39579]
[1744337860868,1.4317,1534.1,1533.7,14.655359]
[1744337861069,1.4317,1534.1,1533.7,8.135369]
[1744337861271,1.4317,1534.1,1533.7,7.39579]
[1744337862680,6.51895,1534.0,1533.7,7.39579]
[1744337863414,14.15406,1534.2,1533.8,6.51956]
[1744337863697,14.15406,1534.2,1533.7,0.8758]
[1744337863698,7.636,1534.2,1533.9,13.03809]
[1744337864274,7.636,1534.2,1534.0,0.838]
[1744337865703,6.51778,1534.3,1534.0,0.838]
[1744337867002,13.03562,1534.3,1534.0,0.838]
[1744337867191,6.51863,1534.1,1533.8,7.35768]
[1744337867499,0.55,1534.0,1533.6,7.35856]
[1744337867702,6.51958,1533.9,1533.6,0.838]
[1744337867863,6.51958,1533.9,1533.6,7.35857]
[1744337868067,7.06898,1534.0,1533.6,15.266964]
[1744337868301,13.58815,1534.0,1533.6,8.746394]
[1744337868464,6.51933,1533.9,1533.6,8.746394]
[1744337868667,7.06898,1534.0,1533.7,6.51991]
[1744337868668,0.55,1534.0,1533.7,6.51991]
[1744337869189,15.07796,1534.1,1533.8,6.51972]
[1744337869888,21.59666,1534.1,1533.8,6.51972]
[1744337870083,7.06903,1534.0,1533.6,8.746464]
[1744337870290,6.51953,1533.9,1533.6,8.746464]
[1744337871650,6.51953,1533.9,1533.6,2.225944]
[1744337872704,6.51906,1534.0,1533.6,8.746294]
[1744337873105,6.51982,1533.8,1533.6,2.225944]
[1744337873311,6.51982,1533.8,1533.6,0.838]
[1744337873671,6.51954,1533.9,1533.6,0.838]
[1744337873887,13.03909,1533.9,1533.6,0.838]
[1744337875288,6.51905,1534.0,1533.7,6.52015]
[1744337875523,6.51879,1534.1,1533.9,0.838]
[1744337875726,18.48113423,1534.4,1533.9,0.838]
[1744337876017,6.51769,1534.3,1534.0,6.51857]
[1744337876215,6.51769,1534.3,1533.9,13.87662]
[1744337876424,6.51769,1534.3,1534.0,6.51883]
[1744337876735,6.51769,1534.3,1534.1,0.651883]
[1744337877421,6.51769,1534.3,1534.0,6.51884]
[1744337877951,6.51849,1534.1,1533.9,0.838]
[1744337878122,6.51953,1533.9,1533.7,1.606915]
[1744337878325,6.51905,1534.0,1533.7,1.606915]
[1744337878498,6.51855,1534.1,1533.7,8.126905]
[1744337878701,6.51855,1534.1,1533.8,0.8126905]
[1744337879015,6.51855,1534.1,1533.8,7.3322505]
[1744337880431,6.51813,1534.2,1533.8,13.8518105]
[1744337880720,6.51767,1534.3,1534.0,0.8711]
[1744337881230,6.51767,1534.3,1534.0,7.39]
[1744337881523,6.51767,1534.3,1534.0,8.58069902]
[1744337881938,14.15527,1534.4,1534.0,8.58054902]
[1744337882131,14.14127,1534.4,1534.1,6.51835]
[1744337882329,19.26688482,1534.7,1534.3,7.38873]
[1744337882499,19.26688482,1534.7,1534.3,13.90619]
[1744337882698,6.5164,1534.6,1534.3,7.38856]
[1744337883737,12.41801941,1534.7,1534.3,0.8711]
[1744337883913,4.79401941,1534.7,1534.6,6.51635]
[1744337884113,4.79401941,1534.7,1534.6,7.38745]
[1744337886755,18.15468482,1535.2,1534.8,6.51546]
[1744337886951,21.94221641,1535.2,1534.8,6.51546]
[1744337888451,21.94221641,1535.2,1534.9,0.8711]
[1744337888749,14.13657,1535.3,1534.9,0.8711]
[1744337888918,14.13657,1535.3,1534.9,13.90068]
[1744337889112,7.623,1535.3,1534.9,0.8711]
[1744337889330,14.13644,1535.3,1534.9,0.8711]
[1744337889662,6.51571,1534.8,1534.5,0.8711]
[1744337889828,6.51635,1534.6,1534.5,0.8711]
[1744337890024,6.51611,1534.7,1534.5,0.8711]
[1744337890224,7.622,1534.8,1534.6,6.51622]
[1744337890561,6.51469,1535.0,1534.7,0.8711]
[1744337890864,6.51469,1535.0,1534.7,7.38698]
[1744337891051,6.51469,1535.0,1534.7,8.122795]
[1744337891250,7.62,1535.1,1534.9,0.8711]
[1744337891758,6.51465,1535.0,1534.7,8.122595]
[1744337892133,6.51465,1535.0,1534.7,7.38678]
[1744337892336,6.51509,1534.9,1534.7,0.8709]
[1744337892534,6.51467,1535.0,1534.7,7.38665]
[1744337893225,14.13459,1535.1,1534.7,13.90242]
[1744337894665,14.13459,1535.1,1534.8,6.51548]
[1744337895662,7.62,1535.1,1534.8,13.03079]
[1744337895864,7.62,1535.1,1534.8,14.420959]
[1744337896161,7.62,1535.1,1534.8,7.905479]
[1744337896366,13.02786,1535.2,1534.9,0.8709]
[1744337896665,6.51382,1535.2,1534.9,7.38588]
[1744337896872,13.02796,1535.2,1534.9,0.8709]
[1744337897037,6.51382,1535.2,1534.9,0.8709]
[1744337897361,6.51424,1535.1,1534.9,0.8709]
[1744337898967,6.51465,1535.0,1534.7,7.38678]
[1744337899146,13.02886,1535.1,1534.7,15.292852]
[1744337899465,6.51424,1535.1,1534.7,15.292852]
[1744337901168,6.51424,1535.1,1534.8,6.51548]
[1744337902769,6.51424,1535.1,1534.8,13.03085]
[1744337903576,13.02784,1535.2,1534.8,13.03085]
[1744337903875,13.02784,1535.2,1534.8,7.86426252]
[1744337904039,13.02784,1535.2,1534.8,14.37957252]
[1744337904240,20.64684,1535.2,1534.8,14.37957252]
[1744337904647,13.02784,1535.2,1534.8,14.37957252]
[1744337904887,6.51388,1535.2,1534.9,6.51504]
[1744337905092,55.902,1535.5,1535.0,0.8709]
[1744337905375,7.619,1535.6,1535.4,7.38371]
[1744337905579,6.51184,1535.7,1535.4,7.38371]
[1744337905794,5.12671482,1536.0,1535.7,7.38243]
[1744337905988,6.51015,1536.1,1535.8,6.51124]
[1744337906280,6.51004,1536.1,1535.8,6.51111]
[1744337906476,1.78136694,1536.1,1535.7,0.8709]
[1744337906678,6.51077,1536.0,1535.7,0.8709]
[1744337906980,14.12953,1536.0,1535.7,0.8709]
[1744337907186,14.12953,1536.0,1535.7,7.38244]
[1744337908277,14.12953,1536.0,1535.7,0.8709]
[1744337908647,7.619,1536.0,1535.7,7.38257]
[1744337909259,7.619,1536.0,1535.7,15.283686]
[1744337910780,7.619,1536.0,1535.8,6.5112]
[1744337911890,7.619,1536.0,1535.7,8.772016]
[1744337914794,7.619,1536.0,1535.7,15.283526]
[1744337914996,11.63602482,1536.3,1535.9,6.51048]
[1744337915200,6.50975,1536.2,1535.9,0.736958]
[1744337916002,11.63589482,1536.3,1535.9,7.247618]
[1744337916159,6.50966,1536.2,1535.9,13.758268]
[1744337916359,6.50966,1536.2,1535.9,7.247608]
[1744337918280,14.20992,1536.4,1536.0,7.2349808]
[1744337918483,6.50927,1536.3,1536.0,0.7247608]
[1744337918687,6.50927,1536.3,1536.0,1.5838608]
[1744337918993,6.50945,1536.3,1535.9,7.247768]
[1744337919170,6.50945,1536.3,1535.9,13.758578]
[1744337920305,6.5094,1536.3,1535.9,7.247768]
[1744337920514,6.50996,1536.2,1535.8,7.37022]
[1744337920793,6.51005,1536.1,1535.8,7.37022]
[1744337920999,13.01992,1536.2,1535.8,13.88128]
[1744337921295,6.5105,1536.0,1535.8,0.8591]
[1744337921597,6.51,1536.1,1535.8,0.8591]
[1744337921765,6.51,1536.1,1535.8,7.37035]
[1744337922398,7.38839,1536.2,1535.8,15.269784]
[1744337922575,7.38839,1536.2,1535.8,8.758534]
[1744337923391,6.51012,1536.1,1535.8,0.8591]
[1744337923879,6.51115,1535.9,1535.6,0.8387]
[1744337924275,6.51134,1535.8,1535.6,0.8387]
[1744337924474,6.51115,1535.9,1535.6,7.3508]
[1744337925168,13.02219,1535.9,1535.6,0.8387]
[1744337925503,6.51233,1535.6,1535.4,0.8387]
[1744337926463,6.51001,1536.1,1535.7,7.35004]
[1744337926660,6.51001,1536.1,1535.7,13.86159]
[1744337927109,6.51001,1536.1,1535.7,7.35004]
[1744337927312,7.34752,1536.0,1535.7,0.8387]
[1744337927486,13.85822,1536.0,1535.7,0.8387]
[1744337927909,6.51088,1535.9,1535.7,0.8387]
[1744337928107,6.51088,1535.9,1535.5,6.51238]
[1744337928108,13.02196,1535.9,1535.5,7.35108]
[1744337928301,6.51088,1535.9,1535.5,15.54295655]
[1744337928911,6.51088,1535.9,1535.6,6.5121]
[1744337929117,7.6,1536.0,1535.8,0.8387]
[1744337929478,7.6,1536.0,1535.8,7.34967]
[1744337929679,7.6,1536.0,1535.9,0.734967]
[1744337929879,7.6,1536.0,1535.8,13.86076]
[1744337931717,7.6,1536.0,1535.8,7.34967]
[1744337936422,7.6,1536.0,1535.8,0.8387]
[1744337936622,14.11048,1536.0,1535.6,6.51202]
[1744337936835,6.51087,1535.9,1535.7,0.8752]
[1744337937009,6.51087,1535.9,1535.5,7.3877]
[1744337937010,13.02197,1535.9,1535.5,7.3877]
[1744337937213,6.51133,1535.8,1535.5,7.3877]
[1744337937590,6.51133,1535.8,1535.5,13.90004]
[1744337937803,6.51087,1535.9,1535.5,13.90004]
[1744337938125,16.409128,1536.0,1535.6,6.51183]
[1744337938290,14.99808,1536.0,1535.6,13.02378]
[1744337938827,21.50878,1536.0,1535.6,13.02378]
[1744337939012,21.50878,1536.0,1535.6,6.51183]
[1744337939013,6.51084,1535.9,1535.6,6.51183]
[1744337939398,14.99808,1536.0,1535.6,13.02381]
[1744337939801,21.50877,1536.0,1535.6,6.51183]
[1744337940028,6.5109,1535.9,1535.6,6.51183]
[1744337940188,13.02197,1535.9,1535.6,6.51183]
[1744337940624,6.5109,1535.9,1535.6,6.51183]
[1744337941527,7.6,1536.0,1535.6,6.51211]
[1744337941702,0.8876,1536.2,1535.9,7.38589]
[1744337941907,7.585,1536.3,1536.1,6.50992]
[1744337942304,0.1,1536.4,1536.3,6.50914]
[1744337945501,0.1,1536.4,1536.3,7.90942636]
[1744337945813,1e-05,1536.4,1536.3,10.90942636]
[1744337946195,1e-05,1536.4,1536.3,16.96942636]
[1744337946396,1e-05,1536.4,1536.3,18.97004188]
[1744337946931,1e-05,1536.4,1536.3,21.90094743]
[1744337947802,1e-05,1536.4,1536.3,22.45094743]
[1744337947991,4.79401941,1537.1,1537.0,7.41498]
[1744337949138,4.79401941,1537.4,1537.1,6.50551]
[1744337949292,4.79401941,1537.4,1537.1,13.749619]
[1744337949489,4.79401941,1537.4,1537.2,6.50531]
[1744337950134,4.79401941,1537.4,1537.3,6.50491]
[1744337950315,4.79401941,1537.4,1537.3,10.34461555]
[1744337950497,4.79401941,1537.4,1537.3,12.07757552]
[1744337951035,4.79401941,1537.4,1537.3,7.41371]
[1744337952733,4.79401941,1537.4,1537.3,0.9088]
[1744337952940,4.79401941,1537.4,1537.3,0.8811]
[1744337953100,4.79401941,1537.4,1537.3,7.38601]
[1744337954011,14.98816,1537.8,1537.4,6.50443]
[1744337954199,16.75989252,1537.8,1537.4,6.50443]
[1744337955001,16.75989252,1537.8,1537.4,13.00866]
[1744337955201,14.98816,1537.8,1537.4,6.50423]
[1744337955438,7.581,1537.8,1537.4,2.93090555]
[1744337955624,7.581,1537.8,1537.6,6.50349]
[1744337956343,7.581,1537.8,1537.5,13.00763]
[1744337956635,7.581,1537.8,1537.5,6.5038]
[1744337957251,7.581,1537.8,1537.3,0.8811]
[1744337957406,6.50533,1537.2,1537.1,0.8811]
[1744337957605,3.0,1537.6,1537.0,6.506]
[1744337957797,6.50406,1537.5,1537.2,6.50519]
[1744337958005,6.50378,1537.6,1537.2,7.38629]
[1744337958227,12.47148482,1537.7,1537.3,6.50476]
[1744337958538,18.97495482,1537.7,1537.3,6.50476]
[1744337958900,12.47148482,1537.7,1537.4,6.50434]
[1744337959106,18.97495482,1537.7,1537.3,6.50473]
[1744337959317,0.8415,1537.7,1537.3,6.50468]
[1744337959616,6.50281,1537.8,1537.4,13.659098]
[1744337959811,6.50281,1537.8,1537.5,6.50401]
[1744337960015,7.34395,1537.9,1537.5,13.88901]
[1744337960309,7.34395,1537.9,1537.5,7.385]
[1744337960511,6.50281,1537.8,1537.5,8.08456452]
[1744337960844,6.50281,1537.8,1537.5,1.58066452]
[1744337961042,7.34404,1537.9,1537.3,3.8811]
[1744337961205,6.50304,1537.8,1537.4,6.50413]
[1744337961405,6.5035,1537.7,1537.3,7.38595]
[1744337961642,13.0071,1537.7,1537.3,7.38595]
[1744337961815,6.5028,1537.8,1537.4,6.5043]
[1744337962017,13.00583,1537.8,1537.4,6.5043]
[1744337963517,6.5028,1537.8,1537.4,13.00857]
[1744337963833,13.00583,1537.8,1537.4,6.50427]
[1744337964350,6.5028,1537.8,1537.4,6.50427]
[1744337964562,6.5028,1537.8,1537.5,0.650427]
[1744337964731,6.50329,1537.7,1537.3,17.609956]
[1744337965258,6.50538,1537.2,1537.0,0.8811]
[1744337965430,6.50497,1537.3,1537.0,0.8811]
[1744337965756,6.50335,1537.7,1537.3,7.38572]
[1744337965953,6.50335,1537.7,1537.4,0.738572]
[1744337966156,7.34435,1537.8,1537.4,7.242862]
[1744337966357,7.34435,1537.8,1537.4,13.747152]
[1744337966530,7.34435,1537.8,1537.4,7.242862]
[1744337966531,6.50323,1537.7,1537.4,7.242862]
[1744337966734,6.50323,1537.7,1537.4,0.738572]
[1744337966947,13.00667,1537.7,1537.4,0.738572]
[1744337967261,6.50323,1537.7,1537.4,0.738572]
[1744337967457,6.50323,1537.7,1537.4,7.243032]
[1744337967660,7.34434,1537.8,1537.4,7.242832]
[1744337967962,0.395092,1538.0,1537.7,6.50305]
[1744337968164,0.395092,1538.0,1537.7,6.50304]
[1744337968652,6.50237,1537.9,1537.6,0.8815]
[1744337968816,13.00508,1537.9,1537.6,0.8815]
[1744337969018,6.50237,1537.9,1537.6,1.69247132]
[1744337969221,6.50318,1537.8,1537.6,0.8815]
[1744337969825,6.50241,1537.9,1537.6,0.8815]
[1744337970134,13.00504,1537.9,1537.6,0.8815]
[1744337970525,0.395092,1538.0,1537.6,0.8815]
[1744337970526,6.897192,1538.0,1537.6,7.38496]
[1744337970722,6.897192,1538.0,1537.7,6.50307]
[1744337971057,6.897192,1538.0,1537.7,7.891873]
[1744337971363,6.503,1537.8,1537.6,0.8815]
[1744337971653,6.5029,1537.8,1537.4,6.50446]
[1744337971881,0.8977,1537.8,1537.4,0.8815]
[1744337972371,6.50372,1537.6,1537.2,19.0706]
[1744337972575,0.8977,1537.8,1537.3,2.93090555]
[1744337972872,0.8977,1537.8,1537.5,0.8815]
[1744337973088,6.50359,1537.7,1537.3,10.31725555]
[1744337973259,6.50346,1537.7,1537.4,0.94357556]
[1744337973577,6.50379,1537.6,1537.4,0.94357556]
[1744337974571,6.50379,1537.6,1537.3,10.31730555]
[1744337974874,6.50346,1537.7,1537.3,16.82206555]
[1744337975073,7.40053,1537.8,1537.4,6.50443]
[1744337975235,6.50283,1537.8,1537.5,6.50402]
[1744337975436,6.50325,1537.7,1537.4,6.50443]
[1744337975774,10.794932,1538.0,1537.6,7.385]
[1744337976270,10.794932,1538.0,1537.6,13.88844]
[1744337976463,10.794932,1538.0,1537.6,7.38494]
[1744337976773,4.292792,1538.0,1537.6,0.8815]
[1744337976935,4.292792,1538.0,1537.4,7.38572]
[1744337977136,4.292792,1538.0,1537.5,0.738572]
[1744337977572,4.292792,1538.0,1537.5,7.242622]
[1744337977936,1.292792,1538.0,1537.7,6.50294]
[1744337978174,0.395092,1538.0,1537.8,6.50265]
[1744337978561,0.395092,1538.0,1537.9,0.8815]
[1744337979143,0.395092,1538.0,1537.9,1.619915]
[1744337979575,0.395092,1538.0,1537.9,0.8815]
[1744337980647,0.395092,1538.0,1537.9,7.38387]
[1744337984362,0.395092,1538.0,1537.9,0.8815]
[1744337984893,0.395092,1538.0,1537.7,6.98713544]
[1744337985079,0.395092,1538.0,1537.7,7.88163544]
[1744337985279,0.395092,1538.0,1537.8,0.78816354]
[1744337985796,6.50279,1537.9,1537.7,0.8945]
[1744337985956,0.395092,1538.0,1537.7,0.8945]
[1744337986160,0.395092,1538.0,1537.7,7.39753]
[1744337986571,0.395092,1538.0,1537.7,13.90056]
[1744337986757,0.395092,1538.0,1537.8,1.390056]
[1744337988516,6.897062,1538.0,1537.8,1.390056]
[1744337989371,0.395092,1538.0,1537.8,1.390056]
[1744337989566,0.395092,1538.0,1537.8,7.892586]
[1744337989796,0.395092,1538.0,1537.9,6.50237]
[1744337989993,0.395092,1538.0,1537.9,7.85151852]
[1744337990306,0.395092,1538.0,1537.9,8.74601852]
[1744337993376,0.395092,1538.0,1537.9,11.74601852]
[1744337995013,0.395092,1538.0,1537.9,8.74601852]
[1744337995886,0.395092,1538.0,1537.9,11.74601852]
[1744337996090,0.395092,1538.0,1537.9,2.24364852]
[1744337996289,0.395092,1538.0,1537.9,8.74601852]
[1744337998280,0.395092,1538.0,1537.9,2.24364852]
[1744337998908,0.395092,1538.0,1537.9,1.34914852]
[1744337999123,0.395092,1538.0,1537.8,7.3805]
[1744337999494,0.395092,1538.0,1537.9,6.50237]
[1744337999916,0.395092,1538.0,1537.8,7.3805]
[1744338000283,0.395092,1538.0,1537.8,13.88314]
[1744338000479,0.395092,1538.0,1537.8,13.88316]
[1744338000786,0.395092,1538.0,1537.9,8.768586]
[1744338004387,0.395092,1538.0,1537.9,7.890686]
[1744338004586,0.395092,1538.0,1537.8,13.4405]
[1744338006420,0.395092,1538.0,1537.9,6.50237]
[1744338006623,0.395092,1538.0,1537.8,13.4405]
[1744338007193,0.395092,1538.0,1537.8,19.9431]
[1744338007592,0.395092,1538.0,1537.9,6.50237]
[1744338007815,0.395092,1538.0,1537.9,8.496657]
[1744338008915,0.395092,1538.0,1537.9,1.994287]
[1744338009088,0.395092,1538.0,1537.8,13.88313]
[1744338009295,0.395092,1538.0,1537.9,6.50237]
[1744338009717,0.395092,1538.0,1537.8,13.88313]
[1744338010034,6.50272,1537.9,1537.6,5.67899328]
[1744338010237,1.226892,1538.0,1537.6,5.67899328]
[1744338010238,13.00619,1537.8,1537.6,4.80109328]
[1744338010445,6.50298,1537.8,1537.7,0.48010933]
[1744338010608,7.728902,1538.0,1537.7,0.48010933]
[1744338010814,0.395092,1538.0,1537.8,6.50261]
[1744338011022,0.395092,1538.0,1537.8,13.88317]